[Event "Titled Tuesday Blitz December 20 Late 2022"]
[White "Makridis, Dimitrios"]
[Black "Vetoshko, Volodymyr"]
[WhiteFideId "25864475"]
[BlackFideId "14122480"]
[WhiteElo "2272"]
[BlackElo "2422"]
[Result "0-1"]
[Round "08"]
[TimeControl "180+1"]
[Date "2022.12.20"]
[WhiteClock "0:00:44"]
[BlackClock "0:00:08"]

1. e4 {[%clk 0:02:59]}  c5 {[%clk 0:02:58]} 2. Nc3 {[%clk 0:02:59]}  e6 {[%clk 0:02:56]} 3. f4 {[%clk 0:02:59]}  d5 {[%clk 0:02:54]} 4. Nf3 {[%clk 0:02:53]}  dxe4 {[%clk 0:02:54]} 5. Nxe4 {[%clk 0:02:54]}  Be7 {[%clk 0:02:51]} 6. g3 {[%clk 0:02:54]}  Nf6 {[%clk 0:02:50]} 7. d3 {[%clk 0:02:53]}  O-O {[%clk 0:02:49]} 8. Bg2 {[%clk 0:02:52]}  Nc6 {[%clk 0:02:48]} 9. O-O {[%clk 0:02:51]}  Nd5 {[%clk 0:02:46]} 10. c3 {[%clk 0:02:50]}  b6 {[%clk 0:02:45]} 11. Qc2 {[%clk 0:02:36]}  Bb7 {[%clk 0:02:44]} 12. Bd2 {[%clk 0:02:36]}  Qc7 {[%clk 0:02:43]} 13. Rae1 {[%clk 0:02:36]}  Rad8 {[%clk 0:02:43]} 14. a3 {[%clk 0:02:35]}  a5 {[%clk 0:02:42]} 15. Bc1 {[%clk 0:02:35]}  Ba6 {[%clk 0:02:38]} 16. Nfg5 {[%clk 0:02:33]}  h6 {[%clk 0:02:34]} 17. Nf3 {[%clk 0:02:25]}  Nf6 {[%clk 0:02:27]} 18. Nf2 {[%clk 0:02:22]}  b5 {[%clk 0:02:13]} 19. Nh4 {[%clk 0:01:56]}  b4 {[%clk 0:02:07]} 20. axb4 {[%clk 0:01:55]}  axb4 {[%clk 0:02:05]} 21. f5 {[%clk 0:01:50]}  e5 {[%clk 0:02:00]} 22. c4 {[%clk 0:01:49]}  Nd4 {[%clk 0:01:57]} 23. Qd1 {[%clk 0:01:49]}  Bb7 {[%clk 0:01:49]} 24. Bxb7 {[%clk 0:01:42]}  Qxb7 {[%clk 0:01:50]} 25. Ne4 {[%clk 0:01:43]}  Nxe4 {[%clk 0:01:41]} 26. Rxe4 {[%clk 0:01:44]}  Bxh4 {[%clk 0:01:31]} 27. gxh4 {[%clk 0:01:44]}  Nxf5 {[%clk 0:00:55]} 28. Qg4 {[%clk 0:01:41]}  Nd6 {[%clk 0:00:55]} 29. Rxe5 {[%clk 0:01:34]}  Rfe8 {[%clk 0:00:36]} 30. Bxh6 {[%clk 0:01:11]}  f5 {[%clk 0:00:34]} 31. Rxe8+ {[%clk 0:01:09]}  Rxe8 {[%clk 0:00:32]} 32. Qg6 {[%clk 0:01:08]}  Qd7 {[%clk 0:00:19]} 33. Bf4 {[%clk 0:01:05]}  Re6 {[%clk 0:00:17]} 34. Qg3 {[%clk 0:01:05]}  Qf7 {[%clk 0:00:16]} 35. Kh1 {[%clk 0:01:00]}  Rg6 {[%clk 0:00:14]} 36. Qf3 {[%clk 0:01:00]}  Ne8 {[%clk 0:00:07]} 37. h5 {[%clk 0:01:00]}  Re6 {[%clk 0:00:06]} 38. Rg1 {[%clk 0:00:58]}  Nf6 {[%clk 0:00:06]} 39. h6 {[%clk 0:00:57]}  g6 {[%clk 0:00:05]} 40. h3 {[%clk 0:00:55]}  Kh7 {[%clk 0:00:05]} 41. Rg2 {[%clk 0:00:45]}  Nh5 {[%clk 0:00:06]} 42. Kh2 {[%clk 0:00:44]}  Qe7 {[%clk 0:00:04]} 43. Bg3 {[%clk 0:00:41]}  Qd7 {[%clk 0:00:04]} 44. Qd5 {[%clk 0:00:40]}  Qxd5 {[%clk 0:00:03]} 45. cxd5 {[%clk 0:00:41]}  Re3 {[%clk 0:00:04]} 46. Rd2 {[%clk 0:00:38]}  Nxg3 {[%clk 0:00:03]} 47. d6 {[%clk 0:00:39]}  Nf1+ {[%clk 0:00:04]} 48. Kg2 {[%clk 0:00:34]}  Nxd2 {[%clk 0:00:05]} 49. d4 {[%clk 0:00:34]}  Rd3 {[%clk 0:00:05]} 50. dxc5 {[%clk 0:00:34]}  Ne4 {[%clk 0:00:04]} 51. c6 {[%clk 0:00:35]}  Rxd6 {[%clk 0:00:04]} 52. c7 {[%clk 0:00:35]}  Rc6 {[%clk 0:00:05]} 53. Kf3 {[%clk 0:00:36]}  Rxc7 {[%clk 0:00:05]} 54. Kf4 {[%clk 0:00:37]}  Kxh6 {[%clk 0:00:05]} 55. b3 {[%clk 0:00:38]}  Kh5 {[%clk 0:00:05]} 56. h4 {[%clk 0:00:39]}  Kxh4 {[%clk 0:00:06]} 57. Ke5 {[%clk 0:00:40]}  Nd2 {[%clk 0:00:05]} 58. Kf4 {[%clk 0:00:41]}  Nxb3 {[%clk 0:00:06]} 59. Ke5 {[%clk 0:00:41]}  Nd4 {[%clk 0:00:06]} 60. Kxd4 {[%clk 0:00:41]}  b3 {[%clk 0:00:05]} 61. Kd5 {[%clk 0:00:42]}  b2 {[%clk 0:00:05]} 62. Kd6 {[%clk 0:00:42]}  b1=Q {[%clk 0:00:05]} 63. Ke6 {[%clk 0:00:43]}  Qe4+ {[%clk 0:00:05]} 64. Kd6 {[%clk 0:00:42]}  Qe7+ {[%clk 0:00:05]} 65. Kd5 {[%clk 0:00:42]}  Rc5+ {[%clk 0:00:05]} 66. Kd4 {[%clk 0:00:43]}  Qe5+ {[%clk 0:00:06]} 67. Kd3 {[%clk 0:00:44]}  Rc3+ {[%clk 0:00:07]} 68. Kd2 {[%clk 0:00:45]}  Qe3+ {[%clk 0:00:07]} 69. Kd1 {[%clk 0:00:44]}  Rc1# {[%clk 0:00:08]} 0-1


[Site "https://www.chess.com"]

[Event "Titled Tuesday Blitz December 20 Late 2022"]
[White "Marcolino, Daniel Mattos"]
[Black "Skibbe, Willi"]
[WhiteFideId "2106841"]
[BlackFideId "4682190"]
[WhiteElo "2135"]
[BlackElo "2328"]
[Result "1-0"]
[Round "08"]
[TimeControl "180+1"]
[Date "2022.12.21"]
[WhiteClock "0:01:10"]
[BlackClock "0:00:18"]

1. d4 {[%clk 0:03:00]}  d5 {[%clk 0:01:34]} 2. Nf3 {[%clk 0:02:59]}  Nf6 {[%clk 0:01:34]} 3. g3 {[%clk 0:02:59]}  e6 {[%clk 0:01:34]} 4. Bg2 {[%clk 0:03:00]}  Be7 {[%clk 0:01:35]} 5. O-O {[%clk 0:03:00]}  O-O {[%clk 0:01:36]} 6. c4 {[%clk 0:03:00]}  dxc4 {[%clk 0:01:36]} 7. Qc2 {[%clk 0:03:00]}  a6 {[%clk 0:01:34]} 8. a4 {[%clk 0:03:00]}  Bd7 {[%clk 0:01:32]} 9. Qxc4 {[%clk 0:03:00]}  Bc6 {[%clk 0:01:32]} 10. Bg5 {[%clk 0:03:00]}  Nbd7 {[%clk 0:01:32]} 11. Nc3 {[%clk 0:02:51]}  a5 {[%clk 0:01:31]} 12. Rad1 {[%clk 0:02:45]}  Nd5 {[%clk 0:01:31]} 13. Bxe7 {[%clk 0:02:44]}  Qxe7 {[%clk 0:01:31]} 14. Nxd5 {[%clk 0:02:34]}  Bxd5 {[%clk 0:01:25]} 15. Qc2 {[%clk 0:02:32]}  c5 {[%clk 0:01:19]} 16. e4 {[%clk 0:02:24]}  Bxe4 {[%clk 0:01:01]} 17. Qxe4 {[%clk 0:02:23]}  Nf6 {[%clk 0:01:02]} 18. Qh4 {[%clk 0:02:13]}  cxd4 {[%clk 0:01:03]} 19. Nxd4 {[%clk 0:02:11]}  Rfd8 {[%clk 0:00:39]} 20. Nb5 {[%clk 0:02:11]}  Rxd1 {[%clk 0:00:35]} 21. Rxd1 {[%clk 0:02:12]}  Rd8 {[%clk 0:00:35]} 22. Rxd8+ {[%clk 0:01:49]}  Qxd8 {[%clk 0:00:36]} 23. Bxb7 {[%clk 0:01:47]}  Qd1+ {[%clk 0:00:33]} 24. Kg2 {[%clk 0:01:47]}  Qb3 {[%clk 0:00:32]} 25. Qd4 {[%clk 0:01:40]}  h5 {[%clk 0:00:26]} 26. Bf3 {[%clk 0:01:20]}  Nd5 {[%clk 0:00:17]} 27. Bxd5 {[%clk 0:01:18]}  exd5 {[%clk 0:00:18]} 28. Nc7 {[%clk 0:01:10]} 1-0


[Site "https://www.chess.com"]

[Event "Titled Tuesday Blitz December 20 Late 2022"]
[White "Melikhov, Evgeny V."]
[Black "Urbina Perez, Juan Antonio"]
[WhiteFideId "4122046"]
[BlackFideId "2217368"]
[WhiteElo "2169"]
[BlackElo "2197"]
[Result "1-0"]
[Round "08"]
[TimeControl "180+1"]
[Date "2022.12.21"]
[WhiteClock "0:00:23"]
[BlackClock "0:00:11"]

1. d4 {[%clk 0:03:00]}  Nf6 {[%clk 0:02:57]} 2. c4 {[%clk 0:03:00]}  e6 {[%clk 0:02:58]} 3. Nc3 {[%clk 0:03:00]}  Bb4 {[%clk 0:02:57]} 4. Qc2 {[%clk 0:03:00]}  O-O {[%clk 0:02:56]} 5. e4 {[%clk 0:03:00]}  d5 {[%clk 0:02:56]} 6. e5 {[%clk 0:03:01]}  Ne4 {[%clk 0:02:50]} 7. Bd3 {[%clk 0:03:01]}  c5 {[%clk 0:02:50]} 8. Nf3 {[%clk 0:03:00]}  cxd4 {[%clk 0:02:48]} 9. Nxd4 {[%clk 0:02:59]}  Nc6 {[%clk 0:02:36]} 10. Nxc6 {[%clk 0:02:55]}  bxc6 {[%clk 0:02:37]} 11. O-O {[%clk 0:02:51]}  f5 {[%clk 0:02:26]} 12. exf6 {[%clk 0:02:50]}  Nxf6 {[%clk 0:02:26]} 13. Bg5 {[%clk 0:02:50]}  h6 {[%clk 0:02:24]} 14. Bh4 {[%clk 0:02:42]}  Bd6 {[%clk 0:02:21]} 15. h3 {[%clk 0:02:36]}  Rb8 {[%clk 0:02:17]} 16. Rae1 {[%clk 0:02:16]}  Bd7 {[%clk 0:02:14]} 17. Bh7+ {[%clk 0:02:09]}  Kh8 {[%clk 0:02:11]} 18. Bg6 {[%clk 0:02:09]}  Qc7 {[%clk 0:02:06]} 19. Qe2 {[%clk 0:01:46]}  Qb6 {[%clk 0:01:47]} 20. b3 {[%clk 0:01:35]}  Qc7 {[%clk 0:01:28]} 21. Bc2 {[%clk 0:01:04]}  Bh2+ {[%clk 0:00:22]} 22. Kh1 {[%clk 0:01:03]}  Bf4 {[%clk 0:00:22]} 23. Qd3 {[%clk 0:00:53]}  Kg8 {[%clk 0:00:21]} 24. Qg6 {[%clk 0:00:44]}  Be8 {[%clk 0:00:18]} 25. Qd3 {[%clk 0:00:42]}  Be5 {[%clk 0:00:17]} 26. Rxe5 {[%clk 0:00:40]}  Qxe5 {[%clk 0:00:17]} 27. Bg3 {[%clk 0:00:41]}  Qf5 {[%clk 0:00:14]} 28. Qxf5 {[%clk 0:00:40]}  exf5 {[%clk 0:00:15]} 29. Bxb8 {[%clk 0:00:40]}  d4 {[%clk 0:00:15]} 30. Ne2 {[%clk 0:00:38]}  c5 {[%clk 0:00:14]} 31. Nf4 {[%clk 0:00:36]}  Rf7 {[%clk 0:00:14]} 32. Bxf5 {[%clk 0:00:33]}  g5 {[%clk 0:00:13]} 33. Nd3 {[%clk 0:00:29]}  Nh5 {[%clk 0:00:11]} 34. Be6 {[%clk 0:00:29]}  Kg7 {[%clk 0:00:11]} 35. Bxf7 {[%clk 0:00:29]}  Bxf7 {[%clk 0:00:12]} 36. Bxa7 {[%clk 0:00:29]}  Bg6 {[%clk 0:00:10]} 37. Rd1 {[%clk 0:00:27]}  Bxd3 {[%clk 0:00:10]} 38. Rxd3 {[%clk 0:00:26]}  Nf4 {[%clk 0:00:11]} 39. Rd2 {[%clk 0:00:26]}  d3 {[%clk 0:00:10]} 40. Bxc5 {[%clk 0:00:25]}  Kf6 {[%clk 0:00:10]} 41. Be3 {[%clk 0:00:25]}  Ne6 {[%clk 0:00:10]} 42. Rxd3 {[%clk 0:00:25]}  Ke5 {[%clk 0:00:10]} 43. Rd5+ {[%clk 0:00:24]}  Ke4 {[%clk 0:00:11]} 44. a4 {[%clk 0:00:23]} 1-0


[Site "https://www.chess.com"]

[Event "Titled Tuesday Blitz December 20 Late 2022"]
[White "Mikhailov, Viacheslav"]
[Black "Kravtsiv, Martyn"]
[WhiteFideId "4187369"]
[BlackFideId "14113147"]
[WhiteElo "2381"]
[BlackElo "2695"]
[Result "1/2-1/2"]
[Round "08"]
[TimeControl "180+1"]
[Date "2022.12.20"]
[WhiteClock "0:00:03"]
[BlackClock "0:00:26"]

1. Nf3 {[%clk 0:02:59]}  d5 {[%clk 0:02:59]} 2. g3 {[%clk 0:03:00]}  Nf6 {[%clk 0:02:58]} 3. Bg2 {[%clk 0:03:00]}  c5 {[%clk 0:02:59]} 4. O-O {[%clk 0:03:00]}  Nc6 {[%clk 0:03:00]} 5. d4 {[%clk 0:03:01]}  cxd4 {[%clk 0:03:00]} 6. Nxd4 {[%clk 0:03:02]}  e5 {[%clk 0:03:00]} 7. Nxc6 {[%clk 0:03:03]}  bxc6 {[%clk 0:03:01]} 8. c4 {[%clk 0:03:03]}  Be6 {[%clk 0:03:01]} 9. Nc3 {[%clk 0:03:04]}  Qd7 {[%clk 0:02:56]} 10. cxd5 {[%clk 0:03:02]}  cxd5 {[%clk 0:02:56]} 11. Bg5 {[%clk 0:03:02]}  Rd8 {[%clk 0:02:51]} 12. Bxf6 {[%clk 0:02:57]}  gxf6 {[%clk 0:02:51]} 13. e4 {[%clk 0:02:55]}  dxe4 {[%clk 0:02:40]} 14. Bxe4 {[%clk 0:02:44]}  Qxd1 {[%clk 0:02:36]} 15. Rfxd1 {[%clk 0:02:45]}  Bc5 {[%clk 0:02:35]} 16. Rac1 {[%clk 0:02:28]}  O-O {[%clk 0:02:31]} 17. Nd5 {[%clk 0:02:12]}  Bd4 {[%clk 0:02:29]} 18. Ne7+ {[%clk 0:01:51]}  Kg7 {[%clk 0:02:25]} 19. Nc6 {[%clk 0:01:51]}  Rd6 {[%clk 0:02:21]} 20. Nxd4 {[%clk 0:01:49]}  exd4 {[%clk 0:02:21]} 21. a3 {[%clk 0:01:40]}  a5 {[%clk 0:02:19]} 22. Rc6 {[%clk 0:01:23]}  Rxc6 {[%clk 0:02:09]} 23. Bxc6 {[%clk 0:01:24]}  Rd8 {[%clk 0:02:07]} 24. b4 {[%clk 0:01:23]}  Bb3 {[%clk 0:02:06]} 25. Rd2 {[%clk 0:01:17]}  axb4 {[%clk 0:01:59]} 26. axb4 {[%clk 0:01:18]}  d3 {[%clk 0:01:58]} 27. b5 {[%clk 0:01:15]}  Ba4 {[%clk 0:01:54]} 28. f4 {[%clk 0:01:10]}  f5 {[%clk 0:01:51]} 29. Kf2 {[%clk 0:01:09]}  Rd6 {[%clk 0:01:50]} 30. Ke3 {[%clk 0:01:09]}  Bc2 {[%clk 0:01:51]} 31. Rf2 {[%clk 0:00:47]}  Kf6 {[%clk 0:01:46]} 32. Kd2 {[%clk 0:00:47]}  Ke7 {[%clk 0:01:34]} 33. Rf3 {[%clk 0:00:43]}  Kd8 {[%clk 0:01:23]} 34. Re3 {[%clk 0:00:42]}  Rh6 {[%clk 0:01:22]} 35. h4 {[%clk 0:00:36]}  Rg6 {[%clk 0:01:19]} 36. Bd5 {[%clk 0:00:30]}  Kc7 {[%clk 0:01:01]} 37. Bxf7 {[%clk 0:00:26]}  Rg7 {[%clk 0:01:01]} 38. Bc4 {[%clk 0:00:25]}  Kb6 {[%clk 0:01:01]} 39. Bxd3 {[%clk 0:00:21]}  Bxd3 {[%clk 0:01:01]} 40. Kxd3 {[%clk 0:00:19]}  Kxb5 {[%clk 0:01:01]} 41. Ke2 {[%clk 0:00:19]}  Kc6 {[%clk 0:01:01]} 42. Kf3 {[%clk 0:00:19]}  Kd6 {[%clk 0:01:01]} 43. Re5 {[%clk 0:00:19]}  Rf7 {[%clk 0:01:01]} 44. h5 {[%clk 0:00:19]}  Rf6 {[%clk 0:01:00]} 45. Kg2 {[%clk 0:00:19]}  Rf7 {[%clk 0:00:59]} 46. Kh3 {[%clk 0:00:20]}  h6 {[%clk 0:00:59]} 47. Kh4 {[%clk 0:00:20]}  Rf6 {[%clk 0:00:58]} 48. Re8 {[%clk 0:00:20]}  Kd7 {[%clk 0:00:56]} 49. Re1 {[%clk 0:00:15]}  Rd6 {[%clk 0:00:52]} 50. Re5 {[%clk 0:00:14]}  Rf6 {[%clk 0:00:52]} 51. Ra5 {[%clk 0:00:12]}  Ke7 {[%clk 0:00:51]} 52. Ra7+ {[%clk 0:00:12]}  Kf8 {[%clk 0:00:51]} 53. Rd7 {[%clk 0:00:12]}  Kg8 {[%clk 0:00:51]} 54. Kh3 {[%clk 0:00:12]}  Re6 {[%clk 0:00:50]} 55. Rd5 {[%clk 0:00:11]}  Rf6 {[%clk 0:00:50]} 56. Kg2 {[%clk 0:00:11]}  Kf7 {[%clk 0:00:49]} 57. Rb5 {[%clk 0:00:12]}  Ke7 {[%clk 0:00:46]} 58. Rb7+ {[%clk 0:00:11]}  Kf8 {[%clk 0:00:45]} 59. Rb5 {[%clk 0:00:11]}  Ke7 {[%clk 0:00:45]} 60. Kf3 {[%clk 0:00:12]}  Kf8 {[%clk 0:00:45]} 61. Ke3 {[%clk 0:00:12]}  Ke7 {[%clk 0:00:37]} 62. Kd4 {[%clk 0:00:12]}  Rd6+ {[%clk 0:00:30]} 63. Rd5 {[%clk 0:00:07]}  Ke6 {[%clk 0:00:30]} 64. Rxd6+ {[%clk 0:00:05]}  Kxd6 {[%clk 0:00:31]} 65. Kc4 {[%clk 0:00:05]}  Kc6 {[%clk 0:00:31]} 66. Kd4 {[%clk 0:00:05]}  Kd6 {[%clk 0:00:29]} 67. Ke3 {[%clk 0:00:04]}  Kc5 {[%clk 0:00:29]} 68. Kd3 {[%clk 0:00:03]}  Kd5 {[%clk 0:00:29]} 69. Ke3 {[%clk 0:00:03]}  Kc5 {[%clk 0:00:26]} 70. Kd3 {[%clk 0:00:02]}  Kd5 {[%clk 0:00:26]} 71. Ke3 {[%clk 0:00:03]}  Kc5 {[%clk 0:00:26]} 1/2-1/2


[Site "https://www.chess.com"]

[Event "Titled Tuesday Blitz December 20 Late 2022"]
[White "Movahed, Sina"]
[Black "Koutlas, Nikolaos"]
[WhiteFideId "42520835"]
[BlackFideId "25827138"]
[WhiteElo "2225"]
[BlackElo "2167"]
[Result "1-0"]
[Round "08"]
[TimeControl "180+1"]
[Date "2022.12.21"]
[WhiteClock "0:01:25"]
[BlackClock "0:00:12"]

1. e4 {[%clk 0:03:00]}  g6 {[%clk 0:03:00]} 2. d4 {[%clk 0:02:59]}  Bg7 {[%clk 0:03:00]} 3. Nf3 {[%clk 0:03:00]}  d6 {[%clk 0:03:00]} 4. Nc3 {[%clk 0:02:58]}  a6 {[%clk 0:02:58]} 5. a4 {[%clk 0:02:55]}  Nf6 {[%clk 0:02:57]} 6. Be2 {[%clk 0:02:53]}  O-O {[%clk 0:02:57]} 7. O-O {[%clk 0:02:54]}  b6 {[%clk 0:02:42]} 8. e5 {[%clk 0:02:54]}  Nfd7 {[%clk 0:02:36]} 9. e6 {[%clk 0:02:49]}  fxe6 {[%clk 0:02:27]} 10. Ng5 {[%clk 0:02:48]}  Rf6 {[%clk 0:02:27]} 11. Nce4 {[%clk 0:02:44]}  h6 {[%clk 0:02:19]} 12. Nxf6+ {[%clk 0:02:43]}  Nxf6 {[%clk 0:02:20]} 13. Nf3 {[%clk 0:02:39]}  Bb7 {[%clk 0:02:20]} 14. Bc4 {[%clk 0:02:39]}  Nd5 {[%clk 0:02:17]} 15. Re1 {[%clk 0:02:38]}  Qd7 {[%clk 0:02:00]} 16. Qd3 {[%clk 0:02:29]}  Kh7 {[%clk 0:01:56]} 17. Nh4 {[%clk 0:02:27]}  Qe8 {[%clk 0:01:51]} 18. Rxe6 {[%clk 0:02:26]}  Bf6 {[%clk 0:01:51]} 19. Nf3 {[%clk 0:02:14]}  Qf7 {[%clk 0:01:50]} 20. Re2 {[%clk 0:02:01]}  Nd7 {[%clk 0:01:46]} 21. c3 {[%clk 0:01:59]}  Qg7 {[%clk 0:01:37]} 22. h4 {[%clk 0:01:57]}  Kh8 {[%clk 0:01:34]} 23. Ng5 {[%clk 0:01:54]}  hxg5 {[%clk 0:01:06]} 24. hxg5 {[%clk 0:01:55]}  Bxd4 {[%clk 0:01:05]} 25. Qh3+ {[%clk 0:01:49]}  Kg8 {[%clk 0:00:59]} 26. Qxd7 {[%clk 0:01:48]}  Be5 {[%clk 0:00:47]} 27. Qxc7 {[%clk 0:01:45]}  e6 {[%clk 0:00:41]} 28. Qxg7+ {[%clk 0:01:37]}  Kxg7 {[%clk 0:00:41]} 29. g3 {[%clk 0:01:31]}  Kf7 {[%clk 0:00:29]} 30. f4 {[%clk 0:01:27]}  Bg7 {[%clk 0:00:26]} 31. Bd3 {[%clk 0:01:26]}  Rh8 {[%clk 0:00:24]} 32. Be4 {[%clk 0:01:26]}  Bf8 {[%clk 0:00:18]} 33. c4 {[%clk 0:01:25]}  Be7 {[%clk 0:00:12]} 34. cxd5 {[%clk 0:01:24]}  exd5 {[%clk 0:00:12]} 35. Bf3 {[%clk 0:01:25]} 1-0


[Site "https://www.chess.com"]

[Event "Titled Tuesday Blitz December 20 Late 2022"]
[White "Munoz, Francisco Javier"]
[Black "Bambino Filho, Antonio Carlos"]
[WhiteFideId "128368"]
[BlackFideId "2113163"]
[WhiteElo "2383"]
[BlackElo "2407"]
[Result "0-1"]
[Round "08"]
[TimeControl "180+1"]
[Date "2022.12.21"]
[WhiteClock "0:00:04"]
[BlackClock "0:00:15"]

1. e4 {[%clk 0:02:30]}  c5 {[%clk 0:02:58]} 2. Nc3 {[%clk 0:02:31]}  Nc6 {[%clk 0:02:57]} 3. f4 {[%clk 0:02:31]}  g6 {[%clk 0:02:57]} 4. Nf3 {[%clk 0:02:31]}  Bg7 {[%clk 0:02:58]} 5. Bb5 {[%clk 0:02:31]}  Nd4 {[%clk 0:02:58]} 6. Nxd4 {[%clk 0:02:29]}  cxd4 {[%clk 0:02:58]} 7. Ne2 {[%clk 0:02:29]}  a6 {[%clk 0:02:58]} 8. Ba4 {[%clk 0:02:30]}  b5 {[%clk 0:02:57]} 9. Bb3 {[%clk 0:02:30]}  Bb7 {[%clk 0:02:49]} 10. Ng3 {[%clk 0:02:29]}  h5 {[%clk 0:02:47]} 11. h4 {[%clk 0:02:27]}  Nh6 {[%clk 0:02:46]} 12. d3 {[%clk 0:02:25]}  Ng4 {[%clk 0:02:45]} 13. Qf3 {[%clk 0:02:02]}  e6 {[%clk 0:02:42]} 14. Bd2 {[%clk 0:01:59]}  a5 {[%clk 0:02:40]} 15. a4 {[%clk 0:01:57]}  Qb6 {[%clk 0:02:31]} 16. axb5 {[%clk 0:01:45]}  Qxb5 {[%clk 0:02:29]} 17. Ra2 {[%clk 0:01:25]}  O-O {[%clk 0:02:27]} 18. Ba4 {[%clk 0:01:18]}  Qb6 {[%clk 0:02:23]} 19. Bxd7 {[%clk 0:01:15]}  a4 {[%clk 0:02:12]} 20. Bxa4 {[%clk 0:01:01]}  Bc6 {[%clk 0:02:05]} 21. Bb3 {[%clk 0:01:02]}  Rxa2 {[%clk 0:02:04]} 22. Bxa2 {[%clk 0:01:02]}  Qxb2 {[%clk 0:02:04]} 23. Bb3 {[%clk 0:01:03]}  Ba4 {[%clk 0:01:55]} 24. Bxa4 {[%clk 0:00:59]}  Qa1+ {[%clk 0:01:55]} 25. Qd1 {[%clk 0:00:39]}  Qxa4 {[%clk 0:01:54]} 26. c4 {[%clk 0:00:39]}  Qa3 {[%clk 0:01:46]} 27. Bc1 {[%clk 0:00:36]}  Qa2 {[%clk 0:01:38]} 28. Qe2 {[%clk 0:00:33]}  Qa1 {[%clk 0:01:26]} 29. O-O {[%clk 0:00:31]}  Rb8 {[%clk 0:01:25]} 30. f5 {[%clk 0:00:31]}  Be5 {[%clk 0:01:22]} 31. Bf4 {[%clk 0:00:26]}  Qb2 {[%clk 0:01:14]} 32. fxg6 {[%clk 0:00:18]}  fxg6 {[%clk 0:01:09]} 33. Bxe5 {[%clk 0:00:11]}  Qxe2 {[%clk 0:00:58]} 34. Nxe2 {[%clk 0:00:10]}  Nxe5 {[%clk 0:00:56]} 35. Nxd4 {[%clk 0:00:11]}  Nxd3 {[%clk 0:00:49]} 36. Nxe6 {[%clk 0:00:11]}  Re8 {[%clk 0:00:49]} 37. Rf6 {[%clk 0:00:11]}  Ne5 {[%clk 0:00:42]} 38. c5 {[%clk 0:00:11]}  Ng4 {[%clk 0:00:42]} 39. Rxg6+ {[%clk 0:00:11]}  Kh7 {[%clk 0:00:43]} 40. Nf4 {[%clk 0:00:07]}  Rxe4 {[%clk 0:00:41]} 41. Rxg4 {[%clk 0:00:03]}  hxg4 {[%clk 0:00:40]} 42. Nd5 {[%clk 0:00:03]}  Rc4 {[%clk 0:00:32]} 43. c6 {[%clk 0:00:03]}  Rxc6 {[%clk 0:00:29]} 44. Ne3 {[%clk 0:00:03]}  g3 {[%clk 0:00:23]} 45. Kf1 {[%clk 0:00:03]}  Rf6+ {[%clk 0:00:20]} 46. Ke2 {[%clk 0:00:03]}  Rf2+ {[%clk 0:00:19]} 47. Kd3 {[%clk 0:00:03]}  Kg6 {[%clk 0:00:19]} 48. Ke4 {[%clk 0:00:03]}  Kh5 {[%clk 0:00:19]} 49. Nf5 {[%clk 0:00:03]}  Rxg2 {[%clk 0:00:17]} 50. Kf3 {[%clk 0:00:04]}  Rf2+ {[%clk 0:00:15]} 51. Ke4 {[%clk 0:00:04]}  Rxf5 {[%clk 0:00:15]} 0-1


[Site "https://www.chess.com"]

[Event "Titled Tuesday Blitz December 20 Late 2022"]
[White "Nakamura, Hikaru"]
[Black "Lazavik, Denis"]
[WhiteFideId "2016192"]
[BlackFideId "13515110"]
[WhiteElo "2909"]
[BlackElo "2484"]
[Result "1-0"]
[Round "08"]
[TimeControl "180+1"]
[Date "2022.12.20"]
[WhiteClock "0:00:17"]
[BlackClock "0:00:05"]

1. e4 {[%clk 0:02:58]}  e5 {[%clk 0:02:59]} 2. Nf3 {[%clk 0:02:56]}  Nc6 {[%clk 0:03:00]} 3. Bb5 {[%clk 0:02:56]}  Nf6 {[%clk 0:03:00]} 4. d3 {[%clk 0:02:54]}  Bc5 {[%clk 0:03:01]} 5. Bxc6 {[%clk 0:02:54]}  dxc6 {[%clk 0:03:01]} 6. Nbd2 {[%clk 0:02:54]}  Nd7 {[%clk 0:03:02]} 7. Nc4 {[%clk 0:02:49]}  f6 {[%clk 0:03:02]} 8. O-O {[%clk 0:02:49]}  Nf8 {[%clk 0:03:02]} 9. Kh1 {[%clk 0:02:48]}  Be6 {[%clk 0:02:55]} 10. Be3 {[%clk 0:02:44]}  Bxe3 {[%clk 0:02:43]} 11. Nxe3 {[%clk 0:02:42]}  Ng6 {[%clk 0:02:43]} 12. g3 {[%clk 0:02:40]}  O-O {[%clk 0:02:41]} 13. h4 {[%clk 0:02:33]}  c5 {[%clk 0:02:40]} 14. h5 {[%clk 0:02:31]}  Ne7 {[%clk 0:02:40]} 15. Nh4 {[%clk 0:02:26]}  Qd7 {[%clk 0:02:34]} 16. f4 {[%clk 0:02:26]}  exf4 {[%clk 0:02:29]} 17. gxf4 {[%clk 0:02:23]}  f5 {[%clk 0:02:29]} 18. Qf3 {[%clk 0:02:18]}  Qc6 {[%clk 0:02:15]} 19. Qg2 {[%clk 0:01:59]}  Rf7 {[%clk 0:02:11]} 20. Nf3 {[%clk 0:01:58]}  Qe8 {[%clk 0:01:50]} 21. Rg1 {[%clk 0:01:51]}  Qf8 {[%clk 0:01:35]} 22. h6 {[%clk 0:00:59]}  g6 {[%clk 0:01:23]} 23. Ng5 {[%clk 0:00:50]}  Qxh6+ {[%clk 0:00:27]} 24. Qh2 {[%clk 0:00:50]}  Qxh2+ {[%clk 0:00:27]} 25. Kxh2 {[%clk 0:00:51]}  Bd7 {[%clk 0:00:27]} 26. Nxf7 {[%clk 0:00:49]}  Kxf7 {[%clk 0:00:28]} 27. Nc4 {[%clk 0:00:47]}  Nc6 {[%clk 0:00:28]} 28. Rae1 {[%clk 0:00:47]}  Be6 {[%clk 0:00:28]} 29. exf5 {[%clk 0:00:45]}  Bxf5 {[%clk 0:00:29]} 30. Ne5+ {[%clk 0:00:45]}  Nxe5 {[%clk 0:00:29]} 31. Rxe5 {[%clk 0:00:46]}  b6 {[%clk 0:00:29]} 32. Rge1 {[%clk 0:00:46]}  Kf6 {[%clk 0:00:18]} 33. Re7 {[%clk 0:00:46]}  c4 {[%clk 0:00:12]} 34. dxc4 {[%clk 0:00:33]}  Rd8 {[%clk 0:00:12]} 35. R1e2 {[%clk 0:00:33]}  Bg4 {[%clk 0:00:10]} 36. R2e5 {[%clk 0:00:32]}  Rd2+ {[%clk 0:00:10]} 37. Kg3 {[%clk 0:00:32]}  h5 {[%clk 0:00:08]} 38. Rxc7 {[%clk 0:00:32]}  Rxc2 {[%clk 0:00:09]} 39. c5 {[%clk 0:00:15]}  bxc5 {[%clk 0:00:06]} 40. Rc6+ {[%clk 0:00:16]}  Kf7 {[%clk 0:00:05]} 41. Rc7+ {[%clk 0:00:16]}  Kf6 {[%clk 0:00:06]} 42. Rc6+ {[%clk 0:00:17]}  Kf7 {[%clk 0:00:06]} 43. Rexc5 {[%clk 0:00:17]}  Rxb2 {[%clk 0:00:06]} 44. Ra6 {[%clk 0:00:17]}  Bf5 {[%clk 0:00:05]} 45. Rc7+ {[%clk 0:00:17]}  Ke8 {[%clk 0:00:05]} 46. Raxa7 {[%clk 0:00:17]}  Kd8 {[%clk 0:00:05]} 47. Rh7 {[%clk 0:00:17]} 1-0


[Site "https://www.chess.com"]